bitfinex/quotes_BTCUSD_20241208
["timestamp","ask_amount","ask_price","bid_price","bid_amount"]
[1733655049507,0.13732997,99410.0,99409.0,0.11710954]
[1733655049963,0.13732997,99410.0,99409.0,0.11910954]
[1733655056152,0.13732997,99410.0,99409.0,0.03724411]
[1733655056343,0.13732997,99410.0,99409.0,0.11910954]
[1733655059988,0.13732997,99410.0,99409.0,0.14210954]
[1733655061124,0.13732997,99410.0,99409.0,0.06024411]
[1733655061244,0.13732997,99410.0,99409.0,0.09210954]
[1733655061446,0.13732997,99410.0,99409.0,0.14210954]
[1733655063403,0.13732997,99410.0,99409.0,0.06024411]
[1733655063708,0.13732997,99410.0,99409.0,0.14210954]
[1733655064089,0.13732997,99410.0,99409.0,0.09210954]
[1733655064501,0.13732997,99410.0,99409.0,0.11910954]
[1733655064870,0.13732997,99410.0,99409.0,0.06910954]
[1733655065516,0.13732997,99410.0,99409.0,0.11910954]
[1733655066412,0.13732997,99410.0,99409.0,0.06910954]
[1733655066668,0.13732997,99410.0,99409.0,0.11910954]
[1733655067295,0.13732997,99410.0,99409.0,0.30017954]
[1733655067719,0.13732997,99410.0,99409.0,0.25017954]
[1733655067916,0.1301664,99410.0,99409.0,0.25017954]
[1733655068122,0.1301664,99410.0,99409.0,0.06910954]
[1733655068123,0.13717989,99410.0,99409.0,0.06910954]
[1733655068965,0.13717989,99410.0,99409.0,0.11910954]
[1733655069383,0.13717989,99410.0,99409.0,0.30017954]
[1733655070436,0.13717989,99410.0,99409.0,0.25017954]
[1733655070647,0.1301664,99410.0,99409.0,0.25017954]
[1733655071063,0.13717989,99410.0,99409.0,0.25017954]
[1733655072819,0.13717989,99410.0,99409.0,0.30017954]
[1733655073035,0.1301664,99410.0,99409.0,0.25017954]
[1733655074169,0.1301664,99410.0,99409.0,0.30017954]
[1733655074813,0.1301664,99410.0,99409.0,0.25017954]
[1733655075029,0.1301664,99410.0,99409.0,0.30017954]
[1733655079279,0.0828664,99410.0,99409.0,0.30017954]
[1733655089175,0.0828664,99410.0,99409.0,0.25017954]
[1733655089372,0.0828664,99410.0,99409.0,0.03586543]
[1733655089589,0.1302664,99410.0,99409.0,0.03586543]
[1733655089789,0.1372608,99410.0,99409.0,0.03586543]
[1733655090538,0.1372608,99410.0,99409.0,0.03386543]
[1733655090783,0.1392608,99410.0,99409.0,0.03386543]
[1733655091004,0.1322664,99410.0,99409.0,0.03386543]
[1733655091234,0.13726061,99410.0,99409.0,0.03186543]
[1733655091490,0.13926061,99410.0,99409.0,0.03186543]
[1733655092104,0.05886061,99410.0,99402.0,0.09042002]
[1733655092333,0.10002951,99409.0,99408.0,0.03186543]
[1733655092561,0.28109951,99409.0,99408.0,0.03186543]
[1733655092802,0.36159951,99409.0,99408.0,0.03186543]
[1733655093033,0.36859372,99409.0,99408.0,0.03186543]
[1733655094137,0.37059372,99409.0,99408.0,0.03186543]
[1733655094573,0.41799372,99409.0,99408.0,0.03186543]
[1733655095008,0.41599372,99409.0,99408.0,0.03186543]
[1733655095227,0.41899372,99409.0,99408.0,0.03186543]
[1733655095846,0.41999372,99409.0,99408.0,0.03186543]
[1733655096284,0.41899372,99409.0,99408.0,0.03186543]
[1733655096759,0.41999372,99409.0,99408.0,0.03186543]
[1733655121374,0.23892372,99409.0,99408.0,0.03186543]
[1733655123913,0.01099421,99409.0,99408.0,0.10486543]
[1733655124114,0.01099421,99409.0,99408.0,0.15156737]
[1733655124346,0.0811,99409.0,99408.0,0.03186543]
[1733655124548,0.08186485,99409.0,99408.0,0.03186543]
[1733655124750,0.09059818,99409.0,99408.0,0.03186543]
[1733655127387,0.19062769,99409.0,99408.0,0.03186543]
[1733655142825,0.37169769,99409.0,99408.0,0.03186543]
[1733655143047,0.37093284,99409.0,99408.0,0.03186543]
[1733655143248,0.37093284,99409.0,99407.0,0.03186543]
[1733655143249,0.2771,99408.0,99407.0,0.03186543]
[1733655143449,0.37712951,99408.0,99407.0,0.03186543]
[1733655143664,0.38366354,99408.0,99407.0,0.03186543]
[1733655144277,0.42500204,99408.0,99407.0,0.03186543]
[1733655144909,0.51551286,99408.0,99407.0,0.03186543]
[1733655145334,0.56362596,99408.0,99407.0,0.03186543]
[1733655145536,0.43700204,99408.0,99407.0,0.03186543]
[1733655145757,0.56074427,99408.0,99407.0,0.03186543]
[1733655145890,0.43400204,99408.0,99407.0,0.03186543]
[1733655146120,0.43800204,99408.0,99407.0,0.03186543]
[1733655147445,0.52847931,99408.0,99407.0,0.03186543]
[1733655147829,0.43800204,99408.0,99407.0,0.03186543]
[1733655148237,0.39666354,99408.0,99407.0,0.03186543]
[1733655148656,0.69845354,99408.0,99407.0,0.03186543]
[1733655152806,0.50215354,99408.0,99407.0,0.03186543]
[1733655153047,0.42135354,99408.0,99407.0,0.03186543]
[1733655153470,0.4239629,99408.0,99407.0,0.03186543]
[1733655155014,0.32393339,99408.0,99407.0,0.05486543]
[1733655155264,0.32393339,99408.0,99407.0,0.11476264]
[1733655156163,0.32393339,99408.0,99407.0,0.16476264]
[1733655156164,0.31493339,99408.0,99407.0,0.16476264]
[1733655156379,0.31093339,99408.0,99407.0,0.16476264]
[1733655156595,0.31893339,99408.0,99407.0,0.16476264]
[1733655156813,0.31093339,99408.0,99407.0,0.16476264]
[1733655157224,0.31793339,99408.0,99407.0,0.16476264]
[1733655157440,0.31793339,99408.0,99407.0,0.30033084]
[1733655157671,0.32093339,99408.0,99407.0,0.49845389]
[1733655158109,0.31793339,99408.0,99407.0,0.49845389]
[1733655158542,0.31093339,99408.0,99407.0,0.6349923]
[1733655158755,0.31093339,99408.0,99407.0,0.49945389]
[1733655158959,0.31193339,99408.0,99407.0,0.49945389]
[1733655159180,0.31193339,99408.0,99407.0,0.63499241]
[1733655159382,0.31093339,99408.0,99407.0,0.16576264]
[1733655159614,0.31093339,99408.0,99407.0,0.30130116]
[1733655159832,0.31093339,99408.0,99407.0,0.16576264]
[1733655162734,0.31093339,99408.0,99407.0,0.05586543]
[1733655164826,0.31093339,99408.0,99407.0,0.001]
[1733655165029,0.31093339,99408.0,99407.0,0.03286543]
[1733655165230,0.31093339,99408.0,99407.0,0.05586543]
[1733655165752,0.31093339,99408.0,99407.0,0.001]
[1733655166015,0.31093339,99408.0,99407.0,0.03286543]
[1733655166208,0.5390629,99408.0,99407.0,0.03286543]
[1733655167020,0.5390629,99408.0,99407.0,0.03186543]
[1733655167154,0.5460629,99408.0,99407.0,0.03186543]
[1733655167363,0.5480629,99408.0,99407.0,0.03186543]
[1733655167564,0.5410629,99408.0,99407.0,0.03186543]
[1733655167790,0.54939207,99408.0,99407.0,0.03186543]
[1733655167990,0.55139207,99408.0,99407.0,0.03186543]
[1733655168824,0.55539207,99408.0,99407.0,0.03186543]
[1733655169074,0.5390629,99408.0,99407.0,0.03186543]
[1733655169431,0.5460629,99408.0,99407.0,0.03186543]
[1733655169999,0.5480629,99408.0,99407.0,0.03186543]
[1733655179743,0.31993339,99408.0,99407.0,0.03186543]
[1733655179981,0.31993339,99408.0,99407.0,0.21293843]
[1733655182828,0.31093339,99408.0,99407.0,0.21293843]
[1733655183231,0.31593339,99408.0,99407.0,0.21293843]
[1733655183996,0.31793339,99408.0,99407.0,0.21293843]
[1733655184201,0.32380488,99408.0,99407.0,0.21293843]
[1733655186560,0.32380488,99408.0,99407.0,0.27156137]
[1733655187216,0.32380488,99408.0,99407.0,0.21293843]
[1733655189356,0.32380488,99408.0,99407.0,0.23593843]
[1733655189806,0.42383439,99408.0,99407.0,0.03186543]
[1733655190006,0.50703439,99408.0,99407.0,0.03186543]
[1733655198157,0.50703439,99408.0,99406.0,0.03186543]
[1733655198158,0.181073,99407.0,99406.0,0.03186543]
[1733655198366,0.29689329,99407.0,99406.0,0.03186543]
[1733655198574,0.29612844,99407.0,99406.0,0.03186543]
[1733655199269,0.29712844,99407.0,99406.0,0.03186543]
[1733655199744,0.59891844,99407.0,99406.0,0.03186543]
[1733655199974,0.60391844,99407.0,99406.0,0.03186543]
[1733655201208,0.65271844,99407.0,99406.0,0.03186543]
[1733655204150,0.65271844,99407.0,99400.0,0.0008657]
[1733655204151,0.181082,99403.0,99402.0,0.05486543]
[1733655204372,0.28111151,99403.0,99402.0,0.05486543]
[1733655204637,0.29614306,99403.0,99402.0,0.05486543]
[1733655205046,0.29036373,99403.0,99402.0,0.05486543]
[1733655205253,0.29136373,99403.0,99402.0,0.05486543]
[1733655205682,0.29436373,99403.0,99402.0,0.05486543]
[1733655206531,0.11328173,99403.0,99402.0,0.05486543]
[1733655209421,0.01325222,99403.0,99402.0,0.05486543]
[1733655211928,0.01325222,99403.0,99402.0,0.0647684]
[1733655212132,0.004,99403.0,99402.0,0.0647684]
[1733655212548,0.004,99403.0,99402.0,0.15518804]
[1733655212768,0.004,99403.0,99402.0,0.0647684]
[1733655213171,0.004,99403.0,99402.0,0.05486543]
[1733655213473,0.004,99403.0,99402.0,0.23563576]
[1733655213699,0.004,99403.0,99402.0,0.47915319]
[1733655214102,0.004,99403.0,99402.0,0.66011595]
[1733655214477,0.004,99403.0,99402.0,0.47915319]
[1733655216582,0.004,99403.0,99402.0,0.61484122]
[1733655216801,0.004,99403.0,99402.0,0.47915319]
[1733655217179,0.004,99403.0,99402.0,0.61484086]
[1733655217739,0.004,99403.0,99402.0,0.28084205]
[1733655217943,0.004,99403.0,99402.0,0.61474872]
[1733655218555,0.004,99403.0,99402.0,0.6147437]
[1733655219125,0.004,99403.0,99402.0,0.28083707]
[1733655221394,0.004,99403.0,99402.0,0.48890104]
[1733655221606,0.004,99403.0,99402.0,0.53890104]
[1733655222163,0.003,99403.0,99402.0,0.53890104]
[1733655222379,0.30179,99407.0,99403.0,0.385162]
[1733655222610,0.30179,99407.0,99406.0,0.09044009]
[1733655222810,0.30179,99407.0,99406.0,0.023]
[1733655223617,0.30279,99407.0,99406.0,0.023]
[1733655223814,0.30279,99407.0,99406.0,0.11343149]
[1733655224017,0.31105097,99407.0,99406.0,0.11343149]
[1733655224416,0.31105097,99407.0,99406.0,0.20372044]
[1733655224786,0.31405097,99407.0,99406.0,0.20372044]
[1733655225746,0.31505097,99407.0,99406.0,0.20372044]
[1733655228302,0.31505097,99407.0,99406.0,0.2037053]
[1733655229767,0.31505097,99407.0,99406.0,0.11328895]
[1733655229967,0.31505097,99407.0,99406.0,0.14515438]
[1733655242013,0.31105097,99407.0,99406.0,0.14515438]
[1733655242239,0.31405097,99407.0,99406.0,0.14515438]
[1733655242445,0.31505097,99407.0,99406.0,0.14515438]
[1733655242677,0.31205097,99407.0,99406.0,0.14515438]
[1733655242875,0.31305097,99407.0,99406.0,0.14515438]
[1733655243887,0.31205097,99407.0,99406.0,0.14515438]
[1733655245425,0.31205097,99407.0,99406.0,0.14615438]
[1733655245664,0.31205097,99407.0,99406.0,0.28654619]
[1733655245871,0.31205097,99407.0,99406.0,0.60516207]
[1733655247089,0.30279,99407.0,99406.0,0.60516207]
[1733655247295,0.31207651,99407.0,99406.0,0.60516207]
[1733655247512,0.31207651,99407.0,99406.0,0.65366207]
[1733655248180,0.31207651,99407.0,99406.0,0.65356264]
[1733655249932,0.31207651,99407.0,99406.0,0.65256264]
[1733655250412,0.31207651,99407.0,99406.0,0.65456264]
[1733655250773,0.31207651,99407.0,99406.0,0.65256264]
[1733655250975,0.31207651,99407.0,99406.0,0.65556264]
[1733655251186,0.31107651,99407.0,99406.0,0.65556264]
[1733655251611,0.31107651,99407.0,99406.0,0.65656264]
[1733655251815,0.31107651,99407.0,99406.0,0.65556264]
[1733655252259,0.31107651,99407.0,99406.0,0.60706264]
[1733655252491,0.31107651,99407.0,99406.0,0.53176264]
[1733655252676,0.31107651,99407.0,99406.0,0.53569552]
[1733655256553,0.31107651,99407.0,99406.0,0.48569552]
[1733655257278,0.31107651,99407.0,99406.0,0.66644094]
[1733655257512,0.31107651,99407.0,99406.0,0.66644247]
[1733655257643,0.31107651,99407.0,99406.0,0.45383009]
[1733655257858,0.31107651,99407.0,99406.0,0.48569552]
[1733655258427,0.31107651,99407.0,99406.0,0.71645248]
[1733655258639,0.31107651,99407.0,99406.0,0.53569552]
[1733655258846,0.31107651,99407.0,99406.0,0.48569552]
[1733655259077,0.31107651,99407.0,99406.0,0.71162194]
[1733655259684,0.31107651,99407.0,99406.0,0.48569552]
[1733655259887,0.31107651,99407.0,99406.0,0.71162194]
[1733655260090,0.31107651,99407.0,99406.0,0.48569552]
[1733655260289,0.31107651,99407.0,99406.0,0.53569552]
[1733655260489,0.31567896,99407.0,99406.0,0.71162194]
[1733655260713,0.31567896,99407.0,99406.0,0.48569552]
[1733655260987,0.31567896,99407.0,99406.0,0.71162194]
[1733655261205,0.31567896,99407.0,99406.0,0.48569552]
[1733655263851,0.31567896,99407.0,99406.0,0.66647885]
[1733655264263,0.31567896,99407.0,99406.0,0.48569552]
[1733655265225,0.31567896,99407.0,99406.0,0.66662189]
[1733655265655,0.31567896,99407.0,99406.0,0.48583441]
[1733655267673,0.31567896,99407.0,99406.0,0.48586308]
[1733655268504,0.31567896,99407.0,99406.0,0.71186686]
[1733655268710,0.31567896,99407.0,99406.0,0.48586308]
[1733655270438,0.31567896,99407.0,99406.0,0.71186686]
[1733655270559,0.31567896,99407.0,99406.0,0.48586308]
[1733655272812,0.31567896,99407.0,99406.0,0.71186686]
[1733655273018,0.31567896,99407.0,99406.0,0.47886308]
[1733655273237,0.31567896,99407.0,99406.0,0.48186308]
[1733655273455,0.31567896,99407.0,99406.0,0.48486308]
[1733655273669,0.31567896,99407.0,99406.0,0.48186308]
[1733655273891,0.31567896,99407.0,99406.0,0.70786686]
[1733655274347,0.31567896,99407.0,99406.0,0.48186308]
[1733655274771,0.31567896,99407.0,99406.0,0.47886308]
[1733655274979,0.31567896,99407.0,99406.0,0.70486686]
[1733655275197,0.31567896,99407.0,99406.0,0.70786686]
[1733655275627,0.31567896,99407.0,99406.0,0.71086686]
[1733655276109,0.31567896,99407.0,99406.0,0.48486308]
[1733655276525,0.31567896,99407.0,99406.0,0.71090535]
[1733655277496,0.31567896,99407.0,99406.0,0.71097883]
[1733655279095,0.31567896,99407.0,99406.0,0.7109886]
[1733655279544,0.31567896,99407.0,99406.0,0.48492984]
[1733655279783,0.31567896,99407.0,99406.0,0.71099694]
[1733655279988,0.31567896,99407.0,99406.0,0.48492984]
[1733655280411,0.31567896,99407.0,99406.0,0.71099751]
[1733655280620,0.31567896,99407.0,99406.0,0.48492984]
[1733655281065,0.31567896,99407.0,99406.0,0.71100536]
[1733655281301,0.31567896,99407.0,99406.0,0.48492984]
[1733655282414,0.31567896,99407.0,99406.0,0.48498211]
[1733655283971,0.31567896,99407.0,99406.0,0.71108715]
[1733655284388,0.31567896,99407.0,99406.0,0.48498211]
[1733655284585,0.31567896,99407.0,99406.0,0.71109054]
[1733655284833,0.31567896,99407.0,99406.0,0.71109771]
[1733655285267,0.31567896,99407.0,99406.0,0.48498211]
[1733655287337,0.31567896,99407.0,99406.0,0.48506099]
[1733655289144,0.31567896,99407.0,99406.0,0.39477204]
[1733655289297,0.43847896,99407.0,99406.0,0.39477204]
[1733655289739,0.43847896,99407.0,99406.0,0.06086543]
[1733655290616,0.43847896,99407.0,99406.0,0.15134186]
[1733655290820,0.43847896,99407.0,99406.0,0.06086543]
[1733655291500,0.43847896,99407.0,99406.0,0.15133809]
[1733655292065,0.43847896,99407.0,99406.0,0.06086543]
[1733655293019,0.43847896,99407.0,99406.0,0.15133879]
[1733655293225,0.43847896,99407.0,99406.0,0.06086543]
[1733655298104,0.43847896,99407.0,99406.0,0.05786543]
[1733655298300,0.43947896,99407.0,99406.0,0.05786543]
[1733655298459,0.43947896,99407.0,99406.0,0.05486543]
[1733655298889,0.44247896,99407.0,99406.0,0.05486543]
[1733655305510,0.44247896,99407.0,99406.0,0.09627298]
[1733655306162,0.44247896,99407.0,99406.0,0.18674634]
[1733655307772,0.44247896,99407.0,99406.0,0.1967411]
[1733655308614,0.44247896,99407.0,99406.0,0.10626774]
[1733655309491,0.44247896,99407.0,99406.0,0.19670392]
[1733655309713,0.44247896,99407.0,99406.0,0.10626774]
[1733655309916,0.44247896,99407.0,99406.0,0.19670467]
[1733655310183,0.44247896,99407.0,99406.0,0.10626774]
[1733655311296,0.39667896,99407.0,99406.0,0.24197779]
[1733655311736,0.39667896,99407.0,99406.0,0.57581398]
[1733655311945,0.39667896,99407.0,99406.0,0.44010393]
[1733655312155,0.39667896,99407.0,99406.0,0.57575507]
[1733655312362,0.39667896,99407.0,99406.0,0.24191888]
[1733655312562,0.39667896,99407.0,99406.0,0.10626774]
[1733655313483,0.39667896,99407.0,99406.0,0.09627298]
[1733655314200,0.39667896,99407.0,99406.0,0.18671469]
[1733655315067,0.39667896,99407.0,99406.0,0.09627298]
[1733655315516,0.39667896,99407.0,99406.0,0.12230714]
[1733655316136,0.39667896,99407.0,99406.0,0.03186543]
[1733655316950,0.39667896,99407.0,99406.0,0.12231157]
[1733655317405,0.39667896,99407.0,99406.0,0.03186543]
[1733655317608,0.39667896,99407.0,99406.0,0.12231157]
[1733655317874,0.39667896,99407.0,99406.0,0.20350934]
[1733655318225,0.39667896,99407.0,99406.0,0.1130632]
[1733655319421,0.39667896,99407.0,99406.0,0.19053464]
[1733655319639,0.31967896,99407.0,99406.0,0.3887427]
[1733655320280,0.31567896,99407.0,99406.0,0.61485805]
[1733655320484,0.31867896,99407.0,99406.0,0.61485805]
[1733655320711,0.31967896,99407.0,99406.0,0.61485805]
[1733655320912,0.31667896,99407.0,99406.0,0.61485805]
[1733655321128,0.31767896,99407.0,99406.0,0.61485805]
[1733655321331,0.31767896,99407.0,99406.0,0.61484303]
[1733655321625,0.31767896,99407.0,99406.0,0.71465837]
[1733655325957,0.31567896,99407.0,99406.0,0.48854754]
[1733655326172,0.31567896,99407.0,99406.0,0.48957272]
[1733655331132,0.31567896,99407.0,99406.0,0.48958369]
[1733655336033,0.31567896,99407.0,99406.0,0.48958006]
[1733655339422,0.31567896,99407.0,99406.0,0.71570551]
[1733655339917,0.31567896,99407.0,99406.0,0.67048721]
[1733655340121,0.39497896,99407.0,99406.0,0.48958006]
[1733655340975,0.39497896,99407.0,99406.0,0.4895922]
[1733655341763,0.44307896,99407.0,99406.0,0.36677686]
[1733655341989,0.44307896,99407.0,99406.0,0.12332752]
[1733655342172,0.44307896,99407.0,99406.0,0.03286543]
[1733655343132,0.44307896,99407.0,99406.0,0.03186543]
[1733655343321,0.44307896,99407.0,99406.0,0.03286543]
[1733655343544,0.44407896,99407.0,99406.0,0.03286543]
[1733655343980,0.44307896,99407.0,99406.0,0.03286543]
[1733655344383,0.44407896,99407.0,99406.0,0.03286543]
[1733655344695,0.44407896,99407.0,99406.0,0.03186543]
[1733655345490,0.44307896,99407.0,99406.0,0.03186543]
[1733655345933,0.44407896,99407.0,99406.0,0.03186543]
[1733655350141,0.55747958,99407.0,99406.0,0.03186543]
[1733655350382,0.55747958,99407.0,99401.0,0.09046209]
[1733655350383,0.181075,99406.0,99405.0,0.03186543]
[1733655350582,0.181084,99401.0,99400.0,0.03273113]
[1733655350821,0.71106836,99401.0,99400.0,0.03273113]
[1733655351033,0.72513169,99401.0,99400.0,0.03273113]
[1733655352412,0.72813169,99401.0,99400.0,0.03273113]
[1733655353026,0.72813169,99401.0,99400.0,0.03173113]
[1733655353232,0.73613169,99401.0,99400.0,0.03173113]
[1733655357392,0.362172,99400.0,99395.0,0.03173113]
[1733655357616,0.0466,99397.0,99393.0,0.03173113]
[1733655357822,0.181097,99394.0,99393.0,0.03173113]
[1733655358026,0.66648136,99394.0,99393.0,0.03173113]
[1733655358232,0.68054469,99394.0,99393.0,0.03173113]
[1733655358650,0.68054469,99394.0,99393.0,0.03230537]
[1733655359497,0.68554469,99394.0,99393.0,0.03230537]
[1733655360344,0.50444769,99394.0,99393.0,0.03230537]
[1733655360555,0.50644769,99394.0,99393.0,0.03230537]
[1733655363453,0.50605081,99394.0,99393.0,0.03230537]
[1733655371063,0.40641818,99394.0,99393.0,0.05570195]
[1733655371283,0.32361818,99394.0,99393.0,0.05570195]
[1733655371510,0.32361818,99394.0,99393.0,0.07870195]
[1733655373278,0.31861818,99394.0,99393.0,0.07870195]
[1733655373502,0.31661818,99394.0,99393.0,0.15680195]
[1733655373728,0.32361818,99394.0,99393.0,0.33834436]
[1733655373976,0.32361818,99394.0,99393.0,0.38344342]
[1733655374188,0.31861818,99394.0,99393.0,0.53604259]
[1733655374399,0.31861818,99394.0,99393.0,0.53804259]
[1733655374622,0.31861818,99394.0,99393.0,0.71848511]
[1733655375248,0.31661818,99394.0,99393.0,0.71848511]
[1733655375425,0.31661818,99394.0,99393.0,0.53804259]
[1733655376072,0.31661818,99394.0,99393.0,0.54004259]
[1733655376510,0.30179,99394.0,99393.0,0.50383877]
[1733655376729,0.30279,99394.0,99393.0,0.50883877]
[1733655376931,0.31763725,99394.0,99393.0,0.50883877]
[1733655378904,0.31763725,99394.0,99393.0,0.50890685]
[1733655379324,0.30279,99394.0,99393.0,0.50890685]
[1733655379761,0.31763725,99394.0,99393.0,0.6893848]
[1733655379971,0.31763725,99394.0,99393.0,0.50890685]
[1733655380213,0.31763725,99394.0,99393.0,0.6893848]
[1733655380436,0.31763725,99394.0,99393.0,0.50890685]
[1733655381882,0.31763725,99394.0,99393.0,0.73450429]
[1733655383644,0.31763725,99394.0,99393.0,0.65640429]
[1733655383845,0.31763725,99394.0,99393.0,0.43080685]
[1733655384903,0.31763725,99394.0,99393.0,0.65640429]
[1733655385593,0.31763725,99394.0,99393.0,0.43080685]
[1733655385802,0.31763725,99394.0,99393.0,0.43087653]
[1733655388778,0.31763725,99394.0,99393.0,0.65650432]
[1733655389129,0.31763725,99394.0,99393.0,0.43086649]
[1733655393516,0.31763725,99394.0,99393.0,0.79244294]
[1733655393689,0.30279,99394.0,99393.0,0.79244294]
[1733655393953,0.31766273,99394.0,99393.0,0.74732821]
[1733655394163,0.31766273,99394.0,99393.0,0.27879713]
[1733655394308,0.31766273,99394.0,99393.0,0.41415985]
[1733655395021,0.31766273,99394.0,99393.0,0.27879713]
[1733655402565,0.31766273,99394.0,99393.0,0.41416355]
[1733655403427,0.30279,99394.0,99393.0,0.41416355]
[1733655403855,0.31764038,99394.0,99393.0,0.61203366]
[1733655404059,0.30279,99394.0,99393.0,0.61203366]
[1733655404262,0.31764038,99394.0,99393.0,0.61203366]
[1733655404484,0.31764038,99394.0,99393.0,0.74744773]
[1733655404674,0.31764038,99394.0,99393.0,0.61203366]
[1733655406129,0.31764038,99394.0,99393.0,0.79252222]
[1733655406335,0.31764038,99394.0,99393.0,0.61203366]
[1733655406692,0.31764038,99394.0,99393.0,0.79252222]
[1733655407669,0.31764038,99394.0,99393.0,0.61203366]
[1733655408371,0.31764038,99394.0,99393.0,0.27879713]
[1733655409022,0.31764038,99394.0,99393.0,0.58879015]
[1733655409322,0.40004038,99394.0,99393.0,0.34573377]
[1733655409531,0.40004038,99394.0,99393.0,0.34573321]
[1733655410573,0.40004038,99394.0,99393.0,0.25540055]
[1733655411257,0.40004038,99394.0,99393.0,0.34575873]
[1733655411466,0.40004038,99394.0,99393.0,0.44557407]
[1733655412116,0.40004038,99394.0,99393.0,0.35521589]
[1733655412965,0.40004038,99394.0,99393.0,0.49070965]
[1733655413199,0.40004038,99394.0,99393.0,0.4907938]
[1733655413703,0.40004038,99394.0,99393.0,0.68892344]
[1733655415520,0.40004038,99394.0,99393.0,0.86969398]
[1733655416679,0.40004038,99394.0,99393.0,0.35521589]
[1733655416824,0.40004038,99394.0,99393.0,0.68915148]
[1733655417408,0.40004038,99394.0,99393.0,0.68915147]
[1733655420314,0.31764038,99394.0,99393.0,0.68915147]
[1733655420944,0.31764038,99394.0,99393.0,0.73915147]
[1733655422132,0.31764038,99394.0,99393.0,0.73912496]
[1733655427029,0.31764038,99394.0,99393.0,0.73911423]
[1733655428568,0.31764038,99394.0,99393.0,0.73911669]
[1733655431582,0.61128638,99394.0,99393.0,0.73911669]
[1733655432392,0.57110698,99394.0,99393.0,0.84668275]
[1733655432846,0.08278274,99394.0,99393.0,0.84668275]
[1733655433289,0.06793791,99394.0,99393.0,0.84668275]
[1733655433836,0.06793791,99394.0,99393.0,0.8391462]
[1733655434044,0.06793791,99394.0,99393.0,0.84668147]
[1733655437535,0.06793791,99394.0,99393.0,0.84667894]
[1733655441607,0.06793791,99394.0,99393.0,0.84651932]
[1733655442675,0.06793791,99394.0,99393.0,1.11775024]
[1733655444470,0.06793791,99394.0,99393.0,0.84651932]
[1733655444902,0.06793791,99394.0,99393.0,1.11770046]
[1733655445339,0.06793791,99394.0,99393.0,0.84651932]
[1733655445544,0.06793791,99394.0,99393.0,1.11770576]
[1733655445945,0.06793791,99394.0,99393.0,0.84651932]
[1733655446613,0.06793791,99394.0,99393.0,1.11768157]
[1733655448453,0.0017318,99400.0,99399.0,0.26281913]
[1733655448653,0.0017318,99400.0,99399.0,0.87137097]
[1733655448863,0.0017318,99400.0,99399.0,0.87890371]
[1733655449059,0.0017318,99400.0,99399.0,0.65294806]
[1733655449856,0.0017318,99400.0,99399.0,0.65594806]
[1733655450343,0.0849664,99410.0,99409.0,0.21280113]
[1733655450555,0.0849664,99410.0,99409.0,0.28272178]
[1733655451501,0.0849664,99410.0,99409.0,0.37309968]
[1733655451999,0.0859664,99410.0,99409.0,0.28272178]
[1733655452549,0.0859664,99410.0,99409.0,0.37309058]
[1733655452774,0.0849664,99410.0,99409.0,0.37309058]
[1733655453529,0.0849664,99410.0,99409.0,0.37409058]
[1733655453931,0.0849664,99410.0,99409.0,0.37509058]
[1733655454369,0.0849664,99410.0,99409.0,0.37609058]
[1733655454573,0.0849664,99410.0,99409.0,0.36855784]
[1733655455224,0.0849664,99410.0,99409.0,0.37609723]
[1733655455585,0.0849664,99410.0,99409.0,0.39648797]
[1733655456023,0.0849664,99410.0,99409.0,0.39648354]
[1733655456170,0.0849664,99410.0,99409.0,0.39648373]
[1733655456813,0.0849664,99410.0,99409.0,0.30611936]
[1733655457247,0.0849664,99410.0,99409.0,0.39648373]
[1733655457458,0.0849664,99410.0,99409.0,0.30611936]
[1733655458110,0.0849664,99410.0,99409.0,0.30611979]
[1733655458515,0.0849664,99410.0,99409.0,0.44166635]
[1733655458717,0.0849664,99410.0,99409.0,0.4515242]
[1733655459758,0.0849664,99410.0,99409.0,0.44398419]
[1733655459976,0.0849664,99410.0,99409.0,0.45152489]
[1733655460412,0.0849664,99410.0,99409.0,0.7851952]
[1733655461508,0.0849664,99410.0,99409.0,0.64964864]
[1733655465615,0.0849664,99410.0,99409.0,0.83077387]
[1733655466510,0.0849664,99410.0,99409.0,0.64987201]
[1733655466737,0.0849664,99410.0,99409.0,0.83077387]
[1733655466963,0.0849664,99410.0,99409.0,0.64987218]
[1733655468736,0.0849664,99410.0,99409.0,0.64001433]
[1733655468964,0.1324664,99410.0,99409.0,0.24373529]
[1733655469770,0.14110941,99410.0,99409.0,0.24373529]
[1733655469944,0.1324664,99410.0,99409.0,0.24373529]
[1733655470155,0.14110941,99410.0,99409.0,0.24373529]
[1733655470369,0.14110941,99410.0,99409.0,0.34355063]
[1733655470713,0.14110941,99410.0,99409.0,0.34354975]
[1733655470917,0.1324664,99410.0,99409.0,0.34354975]
[1733655471653,0.1324664,99410.0,99409.0,0.43401965]
[1733655475006,0.1324664,99410.0,99409.0,0.34254975]
[1733655475208,0.1324664,99410.0,99409.0,0.34154975]
[1733655475840,0.1324664,99410.0,99409.0,0.34054975]
[1733655476057,0.1324664,99410.0,99409.0,0.34134975]
[1733655477797,0.1324664,99410.0,99409.0,0.33380721]
[1733655477989,0.1324664,99410.0,99409.0,0.34134726]
[1733655478268,0.1324664,99410.0,99409.0,0.35136075]
[1733655480439,0.0849664,99410.0,99409.0,0.35136075]
[1733655480651,0.0849664,99410.0,99409.0,0.68540066]
[1733655480841,0.0849664,99410.0,99409.0,0.86636351]
[1733655481256,0.0849664,99410.0,99409.0,0.68540066]
[1733655482651,0.0849664,99410.0,99409.0,0.70840066]
[1733655483005,0.0024664,99410.0,99409.0,0.70840066]
[1733655484191,0.0024664,99410.0,99409.0,0.93461409]
[1733655484405,0.0024664,99410.0,99409.0,0.70840066]
[1733655484785,0.0024664,99410.0,99409.0,0.70837346]
[1733655485022,0.0024664,99410.0,99409.0,0.70083341]
[1733655485274,0.0024664,99410.0,99409.0,0.70837252]
[1733655488637,0.0024664,99410.0,99409.0,0.7083487]
[1733655494913,0.0024664,99410.0,99409.0,0.85837821]
[1733655495747,0.0024664,99410.0,99409.0,0.85737821]
[1733655495955,0.0828,99424.0,99423.0,0.03153113]
[1733655496155,0.0828,99424.0,99423.0,0.55410313]
[1733655496156,0.09707056,99424.0,99423.0,0.55410313]
[1733655496395,0.0828,99424.0,99423.0,0.57995814]
[1733655497237,0.08285742,99424.0,99423.0,0.57995814]
[1733655497466,0.08285742,99424.0,99423.0,0.71559454]
[1733655497722,0.08285742,99424.0,99423.0,0.57995814]
[1733655498390,0.08285742,99424.0,99423.0,0.71558019]
[1733655498614,0.08385742,99424.0,99423.0,0.71558019]
[1733655498827,0.08285742,99424.0,99423.0,0.71558019]
[1733655499265,0.08385742,99424.0,99423.0,0.71558019]
[1733655499488,0.08285742,99424.0,99423.0,0.3815913]
[1733655500169,0.08285742,99424.0,99423.0,0.73830647]
[1733655500423,0.08285742,99424.0,99423.0,0.4045913]
[1733655500848,0.08285742,99424.0,99423.0,0.4055913]
[1733655501268,0.08285742,99424.0,99423.0,0.4045913]
[1733655501486,0.08285742,99424.0,99423.0,0.2809599]
[1733655502313,0.08285742,99424.0,99423.0,0.2829599]
[1733655505467,0.08285742,99424.0,99423.0,0.37331808]